[Event "*** Titled Tuesday 3|2 Blitz"]
[Site "Chess.com"]
[Date "2016.07.05"]
[Round "2"]
[White "TyIerDurden"]
[Black "proxy6"]
[Result "1-0"]
[WhiteElo "2435"]
[BlackElo "1911"]
[TimeControl "180+2"]
[EndTime "17:23:51 PDT"]
[Termination "TyIerDurden won by resignation"]

1. Nf3 {[%clk 0:03:00.8]} 1... Nf6 {[%clk 0:02:59.2]} 2. g3 {[%clk 0:03:01.6]}
2... e6 {[%clk 0:03:00.1]} 3. Bg2 {[%clk 0:03:03.1]} 3... d5 {[%clk 0:03:01.4]}
4. O-O {[%clk 0:03:03.9]} 4... Be7 {[%clk 0:03:02.5]} 5. d3 {[%clk 0:03:05]}
5... c5 {[%clk 0:03:03.4]} 6. Nbd2 {[%clk 0:03:06.6]} 6... Nc6 {[%clk
0:03:04.8]} 7. c4 {[%clk 0:03:07.5]} 7... b6 {[%clk 0:03:02.8]} 8. a3 {[%clk
0:03:08.4]} 8... Bb7 {[%clk 0:03:00.6]} 9. Re1 {[%clk 0:03:09.6]} 9... O-O
{[%clk 0:03:00.4]} 10. Rb1 {[%clk 0:03:10.7]} 10... Qc7 {[%clk 0:02:51.9]} 11.
cxd5 {[%clk 0:03:11.6]} 11... exd5 {[%clk 0:02:50.7]} 12. b3 {[%clk 0:03:12.8]}
12... Rfe8 {[%clk 0:02:44.9]} 13. Bb2 {[%clk 0:03:12.9]} 13... Rad8 {[%clk
0:02:45.9]} 14. e3 {[%clk 0:03:11.2]} 14... Qb8 {[%clk 0:02:11.4]} 15. d4 {[%clk
0:03:09.3]} 15... Ba6 {[%clk 0:02:05.5]} 16. Qc2 {[%clk 0:03:07.6]} 16... Nd7
{[%clk 0:01:37.5]} 17. Qc3 {[%clk 0:03:02.4]} 17... Bf6 {[%clk 0:01:36.9]} 18.
b4 {[%clk 0:03:03.3]} 18... Rc8 {[%clk 0:01:10.8]} 19. Qc2 {[%clk 0:02:57.4]}
19... cxb4 {[%clk 0:01:09.4]} 20. Qd1 {[%clk 0:02:45.6]} 20... bxa3 {[%clk
0:01:07]} 21. Bxa3 {[%clk 0:02:44.3]} 21... Na5 {[%clk 0:01:07.4]} 22. Bh3
{[%clk 0:02:38.6]} 22... Qb7 {[%clk 0:01:03.3]} 23. Nb3 {[%clk 0:02:06.4]} 23...
Nc4 {[%clk 0:01:02.8]} 24. Bb4 {[%clk 0:02:07.3]} 24... Bb5 {[%clk 0:00:58.2]}
25. Nbd2 {[%clk 0:01:54.4]} 25... Qc6 {[%clk 0:00:45.3]} 26. Rc1 {[%clk
0:01:51.1]} 26... a5 {[%clk 0:00:45.7]} 27. Nxc4 {[%clk 0:01:51.3]} 27... Bxc4
{[%clk 0:00:47.6]} 28. Bd2 {[%clk 0:01:37.4]} 28... Ra8 {[%clk 0:00:43.7]} 29.
Ra1 {[%clk 0:01:33.3]} 29... Ra7 {[%clk 0:00:35.6]} 30. Ra4 {[%clk 0:01:07.5]}
30... Rea8 {[%clk 0:00:35.1]} 31. Qc2 {[%clk 0:00:51.5]} 31... b5 {[%clk
0:00:34.2]} 32. Raa1 {[%clk 0:00:46.7]} 32... Nb6 {[%clk 0:00:21.1]} 33. Qb2
{[%clk 0:00:42]} 33... b4 {[%clk 0:00:21.5]} 34. Bf5 {[%clk 0:00:41.8]} 34...
Qb5 {[%clk 0:00:19.1]} 35. Ne5 {[%clk 0:00:40.6]} 35... g6 {[%clk 0:00:18.3]}
36. Bc2 {[%clk 0:00:41.4]} 36... b3 {[%clk 0:00:16.8]} 37. Nxc4 {[%clk 0:00:40]}
37... dxc4 {[%clk 0:00:18.7]} 38. Be4 {[%clk 0:00:36.6]} 38... Nd5 {[%clk
0:00:16]} 39. Bxd5 {[%clk 0:00:34.6]} 39... Qxd5 {[%clk 0:00:17.9]} 40. Ra4
{[%clk 0:00:36.5]} 40... Be7 {[%clk 0:00:13.8]} 41. Rea1 {[%clk 0:00:35.6]}
41... Bd6 {[%clk 0:00:11.3]} 42. Bc3 {[%clk 0:00:34.9]} 42... Be7 {[%clk
0:00:09.9]} 43. Bd2 {[%clk 0:00:33.7]} 43... Bd8 {[%clk 0:00:10.5]} 44. Bc3
{[%clk 0:00:33]} 44... Rc8 {[%clk 0:00:10.7]} 45. Qe2 {[%clk 0:00:32.2]} 45...
h5 {[%clk 0:00:10.3]} 46. e4 {[%clk 0:00:30.4]} 46... Qb5 {[%clk 0:00:10.3]} 47.
d5 {[%clk 0:00:29.6]} 47... Rb8 {[%clk 0:00:11.7]} 48. Qe3 {[%clk 0:00:26.1]}
48... b2 {[%clk 0:00:12.4]} 49. Bxb2 {[%clk 0:00:20.9]} 49... Qxb2 {[%clk
0:00:08.1]} 50. Qxa7 {[%clk 0:00:21.8]} 50... c3 {[%clk 0:00:09.6]} 51. R4a2
{[%clk 0:00:19.8]} 51... Qb3 {[%clk 0:00:08.9]} 52. d6 {[%clk 0:00:18.6]} 52...
c2 {[%clk 0:00:09.5]} 53. Rxc2 {[%clk 0:00:18]} 53... Qxc2 {[%clk 0:00:10.1]}
54. Qxb8 {[%clk 0:00:18.9]} 54... Qxe4 {[%clk 0:00:05.6]} 55. Qxd8+ {[%clk
0:00:18]} 55... Kh7 {[%clk 0:00:07.5]} 1-0

[Event "*** Titled Tuesday 3|2 Blitz"]
[Site "Chess.com"]
[Date "2016.07.05"]
[Round "2"]
[White "MaestroASK"]
[Black "MinhGTrAn"]
[Result "1-0"]
[WhiteElo "2487"]
[BlackElo "2676"]
[TimeControl "180+2"]
[EndTime "17:24:23 PDT"]
[Termination "MaestroASK won on time"]

1. g3 {[%clk 0:03:01]} 1... Nf6 {[%clk 0:03:00.2]} 2. d3 {[%clk 0:03:01.4]} 2...
d5 {[%clk 0:03:01.6]} 3. Bg2 {[%clk 0:03:02.8]} 3... Bf5 {[%clk 0:03:03.2]} 4.
Nd2 {[%clk 0:03:03.1]} 4... c6 {[%clk 0:03:04.4]} 5. e4 {[%clk 0:03:04.1]} 5...
dxe4 {[%clk 0:03:06.3]} 6. dxe4 {[%clk 0:03:04.7]} 6... Bg6 {[%clk 0:03:07.7]}
7. Nh3 {[%clk 0:03:05.3]} 7... e5 {[%clk 0:03:00.4]} 8. Qe2 {[%clk 0:03:05.3]}
8... Nbd7 {[%clk 0:03:01.2]} 9. f3 {[%clk 0:03:05.6]} 9... Bc5 {[%clk 0:02:58]}
10. Nf2 {[%clk 0:03:06.4]} 10... O-O {[%clk 0:02:58.8]} 11. O-O {[%clk 0:03:07]}
11... Qe7 {[%clk 0:02:58.9]} 12. Rd1 {[%clk 0:03:06.9]} 12... Rad8 {[%clk
0:02:59.5]} 13. Nf1 {[%clk 0:03:07.7]} 13... Bb6 {[%clk 0:02:56.4]} 14. Ne3
{[%clk 0:03:06.6]} 14... Nc5 {[%clk 0:02:56.6]} 15. a4 {[%clk 0:03:03.1]} 15...
Rxd1+ {[%clk 0:02:53.4]} 16. Nexd1 {[%clk 0:03:01.2]} 16... Ne6 {[%clk
0:02:39.3]} 17. c3 {[%clk 0:03:00.7]} 17... Nc5 {[%clk 0:02:17.5]} 18. Qc2
{[%clk 0:02:49.6]} 18... Qe6 {[%clk 0:02:13.8]} 19. Be3 {[%clk 0:02:43.2]} 19...
Rd8 {[%clk 0:01:33.3]} 20. b4 {[%clk 0:02:15.1]} 20... Ncd7 {[%clk 0:01:08.7]}
21. Bh3 {[%clk 0:02:03.2]} 21... Qd6 {[%clk 0:01:03.9]} 22. a5 {[%clk
0:01:58.7]} 22... Bxe3 {[%clk 0:01:01.9]} 23. Nxe3 {[%clk 0:01:59.1]} 23... Nf8
{[%clk 0:00:45.1]} 24. Nc4 {[%clk 0:01:57.3]} 24... Qc7 {[%clk 0:00:45.8]} 25.
Rd1 {[%clk 0:01:49.6]} 25... Rxd1+ {[%clk 0:00:44.4]} 26. Qxd1 {[%clk 0:01:50]}
26... Ne8 {[%clk 0:00:44.1]} 27. Ng4 {[%clk 0:01:35.5]} 27... f6 {[%clk
0:00:40.8]} 28. Nge3 {[%clk 0:01:36.1]} 28... Bf7 {[%clk 0:00:38.8]} 29. Kf2
{[%clk 0:01:36]} 29... g6 {[%clk 0:00:37.9]} 30. Qd3 {[%clk 0:01:32.3]} 30...
Kg7 {[%clk 0:00:38.6]} 31. Ke1 {[%clk 0:01:30.7]} 31... b5 {[%clk 0:00:39.1]}
32. Nd2 {[%clk 0:01:26.9]} 32... a6 {[%clk 0:00:37.8]} 33. c4 {[%clk 0:01:17.8]}
33... bxc4 {[%clk 0:00:30.7]} 34. Ndxc4 {[%clk 0:01:14.9]} 34... c5 {[%clk
0:00:32.6]} 35. Qd2 {[%clk 0:01:02.9]} 35... cxb4 {[%clk 0:00:26.3]} 36. Qxb4
{[%clk 0:01:03]} 36... Ne6 {[%clk 0:00:25.2]} 37. Bxe6 {[%clk 0:01:01]} 37...
Bxe6 {[%clk 0:00:27.1]} 38. Qb6 {[%clk 0:00:58.3]} 38... Bxc4 {[%clk 0:00:20.5]}
39. Qxc7+ {[%clk 0:00:57.9]} 39... Nxc7 {[%clk 0:00:22.4]} 40. Nxc4 {[%clk
0:00:59.1]} 40... Kf7 {[%clk 0:00:23.9]} 41. Kd2 {[%clk 0:00:58.7]} 41... Nb5
{[%clk 0:00:20.9]} 42. Kd3 {[%clk 0:00:58]} 42... Ke6 {[%clk 0:00:22.2]} 43. f4
{[%clk 0:00:58.1]} 43... Nd6 {[%clk 0:00:16.3]} 44. Nd2 {[%clk 0:00:52]} 44...
Nb7 {[%clk 0:00:17.2]} 45. Nb3 {[%clk 0:00:52.2]} 45... Kd6 {[%clk 0:00:17.7]}
46. Kc4 {[%clk 0:00:52.7]} 46... Kc6 {[%clk 0:00:18.5]} 47. fxe5 {[%clk
0:00:52.6]} 47... fxe5 {[%clk 0:00:20.4]} 48. Kb4 {[%clk 0:00:51.3]} 48... Nd6
{[%clk 0:00:20.3]} 49. Nc5 {[%clk 0:00:51.9]} 49... g5 {[%clk 0:00:12.1]} 50. g4
{[%clk 0:00:52.3]} 50... h6 {[%clk 0:00:12.2]} 51. h3 {[%clk 0:00:52.8]} 51...
Nb5 {[%clk 0:00:07]} 52. Nxa6 {[%clk 0:00:51.5]} 52... Nd4 {[%clk 0:00:08.7]}
53. Kc4 {[%clk 0:00:48.4]} 53... Ne2 {[%clk 0:00:05.4]} 54. Nb4+ {[%clk
0:00:49]} 54... Kb7 {[%clk 0:00:05.3]} 55. Kd5 {[%clk 0:00:45.1]} 55... Nf4+
{[%clk 0:00:05.8]} 56. Kxe5 {[%clk 0:00:46.3]} 56... Nxh3 {[%clk 0:00:07.7]} 57.
Kf5 {[%clk 0:00:46.8]} 57... Nf4 {[%clk 0:00:03.1]} 58. e5 {[%clk 0:00:47.5]}
58... Kc7 {[%clk 0:00:02.9]} 59. a6 {[%clk 0:00:45.1]} 59... h5 {[%clk
0:00:02.3]} 60. gxh5 {[%clk 0:00:45.7]} 60... Nxh5 {[%clk 0:00:03.5]} 61. Kxg5
{[%clk 0:00:46.5]} 61... Ng7 {[%clk 0:00:04.4]} 62. Kg6 {[%clk 0:00:45.4]} 62...
Ne6 {[%clk 0:00:05.5]} 63. Kf6 {[%clk 0:00:46.2]} 63... Nc5 {[%clk 0:00:04.9]}
64. e6 {[%clk 0:00:44.9]} 64... Kd8 {[%clk 0:00:06.1]} 65. Kf7 {[%clk
0:00:45.3]} 1-0

[Event "*** Titled Tuesday 3|2 Blitz"]
[Site "Chess.com"]
[Date "2016.07.05"]
[Round "3"]
[White "Quiet_Desperation"]
[Black "ruifeng"]
[Result "0-1"]
[WhiteElo "2155"]
[BlackElo "2306"]
[TimeControl "180+2"]
[EndTime "17:31:12 PDT"]
[Termination "ruifeng won by resignation"]

1. e4 {[%clk 0:03:01.9]} 1... d5 {[%clk 0:02:58.7]} 2. exd5 {[%clk 0:03:03]}
2... Nf6 {[%clk 0:03:00.1]} 3. Nc3 {[%clk 0:03:03.4]} 3... Nxd5 {[%clk
0:03:00.8]} 4. Nf3 {[%clk 0:03:04.9]} 4... Nxc3 {[%clk 0:03:01.2]} 5. bxc3
{[%clk 0:03:05.8]} 5... g6 {[%clk 0:02:59.2]} 6. d4 {[%clk 0:03:07]} 6... Bg7
{[%clk 0:03:00.5]} 7. h3 {[%clk 0:03:08.5]} 7... O-O {[%clk 0:03:01.6]} 8. Bd3
{[%clk 0:03:09.8]} 8... c5 {[%clk 0:03:01.5]} 9. Be3 {[%clk 0:03:06.9]} 9... Nc6
{[%clk 0:03:01.7]} 10. O-O {[%clk 0:03:06]} 10... cxd4 {[%clk 0:03:02.6]} 11.
cxd4 {[%clk 0:03:07.5]} 11... Nxd4 {[%clk 0:03:03.3]} 12. Nxd4 {[%clk
0:03:07.5]} 12... Bxd4 {[%clk 0:03:04]} 13. Bxd4 {[%clk 0:03:08.7]} 13... Qxd4
{[%clk 0:03:04.6]} 14. Qe2 {[%clk 0:03:10.6]} 14... Qf6 {[%clk 0:03:00.5]} 15.
Rab1 {[%clk 0:03:10.8]} 15... b6 {[%clk 0:03:00.5]} 16. f4 {[%clk 0:02:58.1]}
16... Bf5 {[%clk 0:02:45.7]} 17. Rfe1 {[%clk 0:02:55]} 17... e6 {[%clk
0:02:45.5]} 18. Bxf5 {[%clk 0:02:53.3]} 18... Qxf5 {[%clk 0:02:46.5]} 19. Rf1
{[%clk 0:02:52.8]} 19... Rac8 {[%clk 0:02:47.2]} 20. c4 {[%clk 0:02:52]} 20...
Rc5 {[%clk 0:02:47.7]} 21. g4 {[%clk 0:02:51.6]} 21... Qf6 {[%clk 0:02:48]} 22.
Rbd1 {[%clk 0:02:46.9]} 22... Rfc8 {[%clk 0:02:45.6]} 23. Rd7 {[%clk 0:02:43.4]}
23... R8c7 {[%clk 0:02:46.4]} 24. g5 {[%clk 0:02:34.2]} 24... Qc3 {[%clk
0:02:45.4]} 25. Rd8+ {[%clk 0:02:34.9]} 25... Kg7 {[%clk 0:02:45.8]} 26. f5
{[%clk 0:02:33.9]} 26... exf5 {[%clk 0:02:16.7]} 27. Qf2 {[%clk 0:02:04.2]}
27... Rxc4 {[%clk 0:02:10.9]} 28. Qh4 {[%clk 0:01:58.5]} 0-1

[Event "*** Titled Tuesday 3|2 Blitz"]
[Site "Chess.com"]
[Date "2016.07.05"]
[Round "3"]
[White "matein28"]
[Black "WanderingPuppet"]
[Result "1/2-1/2"]
[WhiteElo "2358"]
[BlackElo "2276"]
[TimeControl "180+2"]
[EndTime "17:32:52 PDT"]
[Termination "Game drawn by repetition"]

1. d4 {[%clk 0:02:58.9]} 1... Nf6 {[%clk 0:03:00.5]} 2. c4 {[%clk 0:02:54]} 2...
g6 {[%clk 0:03:01.7]} 3. Nf3 {[%clk 0:02:55.2]} 3... Bg7 {[%clk 0:03:03.1]} 4.
g3 {[%clk 0:02:56.8]} 4... d6 {[%clk 0:03:04.7]} 5. Bg2 {[%clk 0:02:58.3]} 5...
O-O {[%clk 0:03:06.3]} 6. O-O {[%clk 0:03:00.2]} 6... Nc6 {[%clk 0:03:06.7]} 7.
Nc3 {[%clk 0:03:01.7]} 7... a6 {[%clk 0:03:07.9]} 8. b3 {[%clk 0:03:03]} 8...
Bd7 {[%clk 0:03:09.1]} 9. Bb2 {[%clk 0:03:04.4]} 9... Rb8 {[%clk 0:03:09.3]} 10.
Re1 {[%clk 0:03:05.9]} 10... b5 {[%clk 0:03:10.2]} 11. cxb5 {[%clk 0:03:02.7]}
11... axb5 {[%clk 0:03:12.1]} 12. e4 {[%clk 0:03:04.1]} 12... b4 {[%clk
0:03:12]} 13. Nd5 {[%clk 0:03:00.8]} 13... e6 {[%clk 0:03:09.3]} 14. Nxf6+
{[%clk 0:03:01.4]} 14... Bxf6 {[%clk 0:03:11.2]} 15. e5 {[%clk 0:03:02.2]} 15...
Bg7 {[%clk 0:03:09.6]} 16. Rc1 {[%clk 0:03:02.3]} 16... Ne7 {[%clk 0:03:04.7]}
17. Ba1 {[%clk 0:03:00.5]} 17... Bc6 {[%clk 0:02:41.5]} 18. Qc2 {[%clk
0:02:56.1]} 18... Rb6 {[%clk 0:02:42.4]} 19. Re3 {[%clk 0:02:53.7]} 19... Nf5
{[%clk 0:02:40.3]} 20. Ree1 {[%clk 0:02:51.9]} 20... Qa8 {[%clk 0:02:24.9]} 21.
Qe2 {[%clk 0:02:32.5]} 21... Rd8 {[%clk 0:02:12.9]} 22. g4 {[%clk 0:02:29.9]}
22... Ne7 {[%clk 0:02:11.4]} 23. Nh4 {[%clk 0:02:16.7]} 23... Bxg2 {[%clk
0:02:11.8]} 24. Nxg2 {[%clk 0:02:18]} 24... dxe5 {[%clk 0:02:04.2]} 25. dxe5
{[%clk 0:02:06.3]} 25... Nd5 {[%clk 0:01:54.4]} 26. Rc4 {[%clk 0:01:58.4]} 26...
Ra6 {[%clk 0:01:53.3]} 27. Rc2 {[%clk 0:01:57.7]} 27... Qa7 {[%clk 0:01:51]} 28.
Rd1 {[%clk 0:01:58.3]} 28... Ra8 {[%clk 0:01:49.7]} 29. Rdd2 {[%clk 0:01:59.5]}
29... Qb6 {[%clk 0:01:48.7]} 30. h4 {[%clk 0:01:58.8]} 30... Qb8 {[%clk
0:01:43.2]} 31. f4 {[%clk 0:01:56.2]} 31... Qd8 {[%clk 0:01:41]} 32. Ne3 {[%clk
0:01:53.5]} 32... Qxh4 {[%clk 0:01:37.3]} 33. Nxd5 {[%clk 0:01:52.9]} 33... exd5
{[%clk 0:01:39.1]} 34. Rxd5 {[%clk 0:01:52.1]} 34... Qg3+ {[%clk 0:01:38.9]} 35.
Kh1 {[%clk 0:01:49.3]} 35... Qh3+ {[%clk 0:01:24.8]} 36. Kg1 {[%clk 0:01:47.1]}
36... Qg3+ {[%clk 0:01:25.9]} 37. Kh1 {[%clk 0:01:48.6]} 37... Qh3+ {[%clk
0:01:26.9]} 38. Kg1 {[%clk 0:01:50]} 38... Qg3+ {[%clk 0:01:28]} 1/2-1/2

[Event "*** Titled Tuesday 3|2 Blitz"]
[Site "Chess.com"]
[Date "2016.07.05"]
[Round "3"]
[White "Semetey"]
[Black "Konavets"]
[Result "0-1"]
[WhiteElo "2438"]
[BlackElo "2503"]
[TimeControl "180+2"]
[EndTime "17:33:12 PDT"]
[Termination "Konavets won by checkmate"]

1. d4 {[%clk 0:03:01.9]} 1... b5 {[%clk 0:03:00.5]} 2. e4 {[%clk 0:03:01.8]}
2... a6 {[%clk 0:03:02.1]} 3. Nf3 {[%clk 0:02:59.3]} 3... Bb7 {[%clk 0:03:03]}
4. Bd3 {[%clk 0:03:00.5]} 4... e6 {[%clk 0:03:04.9]} 5. O-O {[%clk 0:03:01]}
5... Be7 {[%clk 0:03:06.6]} 6. a4 {[%clk 0:02:59.5]} 6... b4 {[%clk 0:03:07.7]}
7. Bf4 {[%clk 0:02:52.1]} 7... Nf6 {[%clk 0:03:07.7]} 8. Nbd2 {[%clk 0:02:53]}
8... d5 {[%clk 0:03:08.9]} 9. Qe2 {[%clk 0:02:45]} 9... c5 {[%clk 0:03:09.4]}
10. c3 {[%clk 0:02:22]} 10... Nc6 {[%clk 0:03:09.5]} 11. e5 {[%clk 0:02:13]}
11... Nd7 {[%clk 0:03:10.4]} 12. Be3 {[%clk 0:01:59.5]} 12... h5 {[%clk
0:03:07.9]} 13. h3 {[%clk 0:01:51.2]} 13... g5 {[%clk 0:03:06.2]} 14. dxc5
{[%clk 0:01:50.3]} 14... bxc3 {[%clk 0:03:04.2]} 15. bxc3 {[%clk 0:01:50]} 15...
g4 {[%clk 0:03:04.6]} 16. hxg4 {[%clk 0:01:46.5]} 16... hxg4 {[%clk 0:03:06.5]}
17. Nd4 {[%clk 0:01:47.7]} 17... Ncxe5 {[%clk 0:03:06.9]} 18. Bf4 {[%clk
0:01:39.8]} 18... Nxd3 {[%clk 0:03:04.5]} 19. Qxd3 {[%clk 0:01:40.5]} 19... Nxc5
{[%clk 0:03:05.6]} 20. Qg3 {[%clk 0:01:41.7]} 20... Kd7 {[%clk 0:02:54.4]} 21.
Rab1 {[%clk 0:01:42.1]} 21... Qg8 {[%clk 0:02:54.1]} 22. N2b3 {[%clk 0:01:39]}
22... Ne4 {[%clk 0:02:52.9]} 23. Na5 {[%clk 0:01:15.2]} 23... Bc8 {[%clk
0:02:47.6]} 24. Nac6 {[%clk 0:00:48.2]} 24... Nxg3 {[%clk 0:02:45.1]} 25. fxg3
{[%clk 0:00:49.4]} 25... Bc5 {[%clk 0:02:42.5]} 26. Be5 {[%clk 0:00:42.5]} 26...
Rh5 {[%clk 0:02:41]} 27. Rf4 {[%clk 0:00:34.8]} 27... Rh1+ {[%clk 0:02:38.4]}
28. Kxh1 {[%clk 0:00:32.4]} 28... Qh7+ {[%clk 0:02:38.2]} 29. Kg1 {[%clk
0:00:33.9]} 29... Qxb1+ {[%clk 0:02:38.9]} 30. Kh2 {[%clk 0:00:35.6]} 30... Qh7+
{[%clk 0:02:39.2]} 31. Kg1 {[%clk 0:00:36.8]} 31... Qb1+ {[%clk 0:02:40.1]} 32.
Kh2 {[%clk 0:00:37.4]} 32... f5 {[%clk 0:02:41.2]} 33. Bf6 {[%clk 0:00:22.2]}
33... Bd6 {[%clk 0:02:38.6]} 34. Ne5+ {[%clk 0:00:23.1]} 34... Bxe5 {[%clk
0:02:39.7]} 35. Bxe5 {[%clk 0:00:24.2]} 35... Bb7 {[%clk 0:02:41.6]} 36. Rf2
{[%clk 0:00:20.8]} 36... Rf8 {[%clk 0:02:41.5]} 37. a5 {[%clk 0:00:20.4]} 37...
Rf7 {[%clk 0:02:41.9]} 38. Ne2 {[%clk 0:00:19]} 38... Rh7# {[%clk 0:02:42.1]}
0-1

[Event "*** Titled Tuesday 3|2 Blitz"]
[Site "Chess.com"]
[Date "2016.07.05"]
[Round "3"]
[White "goingin33"]
[Black "ChrisTool2"]
[Result "1-0"]
[WhiteElo "2152"]
[BlackElo "2291"]
[TimeControl "180+2"]
[EndTime "17:33:13 PDT"]
[Termination "goingin33 won by resignation"]

1. e4 {[%clk 0:03:01.9]} 1... c5 {[%clk 0:02:56.7]} 2. Nf3 {[%clk 0:03:02.4]}
2... e6 {[%clk 0:02:58.3]} 3. d4 {[%clk 0:03:03.5]} 3... cxd4 {[%clk 0:03:00.2]}
4. Nxd4 {[%clk 0:03:05]} 4... a6 {[%clk 0:03:01.9]} 5. Nc3 {[%clk 0:03:06.6]}
5... Qc7 {[%clk 0:03:03.5]} 6. g3 {[%clk 0:03:08.1]} 6... Nf6 {[%clk 0:03:03.8]}
7. Bg2 {[%clk 0:03:09.1]} 7... d6 {[%clk 0:03:05.4]} 8. O-O {[%clk 0:03:09.7]}
8... Nbd7 {[%clk 0:03:06]} 9. a4 {[%clk 0:03:11.3]} 9... Be7 {[%clk 0:03:06.8]}
10. a5 {[%clk 0:03:12.5]} 10... O-O {[%clk 0:03:07.2]} 11. f4 {[%clk 0:03:13.8]}
11... Nc5 {[%clk 0:03:06.3]} 12. g4 {[%clk 0:03:14.2]} 12... Rd8 {[%clk
0:02:24.8]} 13. g5 {[%clk 0:03:07.4]} 13... Ne8 {[%clk 0:02:22.4]} 14. Rf3
{[%clk 0:03:08.3]} 14... b5 {[%clk 0:02:17.3]} 15. axb6 {[%clk 0:02:57.9]} 15...
Qxb6 {[%clk 0:02:17.8]} 16. Kh1 {[%clk 0:02:59.8]} 16... Bb7 {[%clk 0:02:18.1]}
17. Rh3 {[%clk 0:03:00.5]} 17... g6 {[%clk 0:02:09.1]} 18. f5 {[%clk 0:02:53.8]}
18... exf5 {[%clk 0:02:02]} 19. exf5 {[%clk 0:02:55.7]} 19... Bf8 {[%clk
0:01:37.8]} 20. Nd5 {[%clk 0:02:35.1]} 20... Qa7 {[%clk 0:01:20.9]} 21. Qg4
{[%clk 0:01:59.1]} 21... Nd7 {[%clk 0:01:06.2]} 22. Qh4 {[%clk 0:01:40.9]} 22...
Bg7 {[%clk 0:00:47.4]} 23. f6 {[%clk 0:01:34.9]} 23... Bxd5 {[%clk 0:00:25.1]}
24. Qxh7+ {[%clk 0:01:33.2]} 24... Kf8 {[%clk 0:00:26.3]} 25. Qh8+ {[%clk
0:01:33.1]} 1-0

[Event "*** Titled Tuesday 3|2 Blitz"]
[Site "Chess.com"]
[Date "2016.07.05"]
[Round "3"]
[White "JusticeBot"]
[Black "Hikaru"]
[Result "0-1"]
[WhiteElo "2559"]
[BlackElo "3002"]
[TimeControl "180+2"]
[EndTime "17:34:24 PDT"]
[Termination "Hikaru won by resignation"]

1. e4 {[%clk 0:03:01.9]} 1... c5 {[%clk 0:03:00.7]} 2. c3 {[%clk 0:03:02.5]}
2... d5 {[%clk 0:03:00.4]} 3. exd5 {[%clk 0:03:04.4]} 3... Qxd5 {[%clk
0:03:01.9]} 4. d4 {[%clk 0:03:06.1]} 4... Nf6 {[%clk 0:03:03.6]} 5. Nf3 {[%clk
0:03:07.1]} 5... e6 {[%clk 0:03:04.8]} 6. Be2 {[%clk 0:03:08.1]} 6... Nc6 {[%clk
0:03:05.9]} 7. O-O {[%clk 0:03:09.3]} 7... cxd4 {[%clk 0:03:07.3]} 8. cxd4
{[%clk 0:03:11.2]} 8... Be7 {[%clk 0:03:08.7]} 9. Nc3 {[%clk 0:03:12.6]} 9...
Qd6 {[%clk 0:03:09.9]} 10. Be3 {[%clk 0:03:14.1]} 10... O-O {[%clk 0:03:11]} 11.
a3 {[%clk 0:03:14.9]} 11... b6 {[%clk 0:03:12.3]} 12. Qd2 {[%clk 0:03:08.5]}
12... Bb7 {[%clk 0:03:13]} 13. Rfd1 {[%clk 0:02:59.2]} 13... Na5 {[%clk
0:03:11.3]} 14. Bf4 {[%clk 0:02:54.1]} 14... Qd8 {[%clk 0:03:10.2]} 15. Qe3
{[%clk 0:02:34.3]} 15... Nd5 {[%clk 0:02:55.9]} 16. Nxd5 {[%clk 0:02:34.4]}
16... Qxd5 {[%clk 0:02:57.8]} 17. Qe5 {[%clk 0:02:25.2]} 17... Rac8 {[%clk
0:02:48.4]} 18. Rac1 {[%clk 0:02:04.2]} 18... Nb3 {[%clk 0:02:49]} 19. Rb1
{[%clk 0:01:50.7]} 19... Rfd8 {[%clk 0:02:36.1]} 20. Qxd5 {[%clk 0:01:29.7]}
20... Bxd5 {[%clk 0:02:36.9]} 21. Be3 {[%clk 0:01:18.5]} 21... Bf6 {[%clk
0:02:33.5]} 22. Ba6 {[%clk 0:01:18.1]} 22... Rc6 {[%clk 0:02:20.7]} 23. Bb7
{[%clk 0:01:16.9]} 23... Rcd6 {[%clk 0:02:21.6]} 24. Bxd5 {[%clk 0:01:10.8]}
24... Rxd5 {[%clk 0:02:23.5]} 25. Rd3 {[%clk 0:01:12.1]} 25... Nxd4 {[%clk
0:02:23.8]} 26. Bxd4 {[%clk 0:00:59.6]} 26... Bxd4 {[%clk 0:02:25.7]} 27. Rxd4
{[%clk 0:01:01.3]} 27... Rxd4 {[%clk 0:02:26.4]} 28. Nxd4 {[%clk 0:01:03.2]}
28... Rxd4 {[%clk 0:02:27.6]} 29. Rc1 {[%clk 0:01:05.1]} 29... g5 {[%clk
0:02:28.5]} 30. h3 {[%clk 0:00:51.3]} 30... Rd2 {[%clk 0:02:29]} 31. Rc7 {[%clk
0:00:43.6]} 31... a5 {[%clk 0:02:27.5]} 32. b3 {[%clk 0:00:42]} 32... Rd3 {[%clk
0:02:27.3]} 33. b4 {[%clk 0:00:39.1]} 33... axb4 {[%clk 0:02:25.3]} 34. axb4
{[%clk 0:00:41]} 34... Rd4 {[%clk 0:02:26.3]} 35. b5 {[%clk 0:00:36]} 35... Rd5
{[%clk 0:02:27.3]} 36. Kh2 {[%clk 0:00:33.5]} 36... Rxb5 {[%clk 0:02:27.4]} 37.
Kg3 {[%clk 0:00:35.4]} 37... Kg7 {[%clk 0:02:26.8]} 38. Rc8 {[%clk 0:00:33.4]}
38... Rb3+ {[%clk 0:02:26.6]} 39. Kg4 {[%clk 0:00:30.8]} 39... Rb2 {[%clk
0:02:27.9]} 40. Kxg5 {[%clk 0:00:29.8]} 40... Rxf2 {[%clk 0:02:28.8]} 41. g4
{[%clk 0:00:31.1]} 41... b5 {[%clk 0:02:26.4]} 42. Rb8 {[%clk 0:00:31.2]} 42...
Rb2 {[%clk 0:02:27.4]} 43. Rb7 {[%clk 0:00:29.4]} 43... b4 {[%clk 0:02:28.8]}
44. h4 {[%clk 0:00:29.2]} 44... b3 {[%clk 0:02:30.2]} 45. Kh5 {[%clk 0:00:24.4]}
45... h6 {[%clk 0:02:29.7]} 46. Rb4 {[%clk 0:00:23.2]} 46... Rb1 {[%clk
0:02:30.7]} 47. Rb6 {[%clk 0:00:24.5]} 47... b2 {[%clk 0:02:30.9]} 48. Rb5
{[%clk 0:00:22.9]} 48... e5 {[%clk 0:02:31.6]} 49. g5 {[%clk 0:00:20.5]} 49...
hxg5 {[%clk 0:02:32.3]} 50. Rb3 {[%clk 0:00:21.5]} 50... e4 {[%clk 0:02:32.9]}
51. Rb5 {[%clk 0:00:22.4]} 51... gxh4 {[%clk 0:02:33.1]} 52. Rg5+ {[%clk
0:00:19.3]} 52... Kf8 {[%clk 0:02:33.9]} 53. Rb5 {[%clk 0:00:21.2]} 53... h3
{[%clk 0:02:35]} 54. Rb8+ {[%clk 0:00:23.1]} 54... Kg7 {[%clk 0:02:36.1]} 55.
Rb7 {[%clk 0:00:24.7]} 55... e3 {[%clk 0:02:36.2]} 0-1